fUST/lending_fUST_20250204
["ID","MTS","AMOUNT","RATE_DAILY","PERIOD"]
[351577906,1738637440435,-2662.0,0.00016438,2]
[351577907,1738637440444,-1921.58,0.00016438,2]
[351577908,1738637440454,-500.0,0.00016438,2]
[351577909,1738637440463,-500.0,0.00016438,2]
[351577910,1738637440472,-201.17176521,0.00016438,2]
[351577911,1738637440482,-1259.9,0.00016438,2]
[351577912,1738637440491,-502.39223482,0.00016438,2]
[351577913,1738637440500,-500.0,0.00016438,2]
[351577914,1738637440509,-500.0,0.00016438,2]
[351577915,1738637440519,-500.0,0.00016438,2]
[351577916,1738637440529,-502.10667941,0.00016438,2]
[351577917,1738637440538,-500.0,0.00016438,2]
[351577918,1738637440549,-506.66287198,0.00016438,2]
[351577919,1738637440558,-500.0,0.00016438,2]
[351577920,1738637440568,-858.41,0.00016438,2]
[351577921,1738637440577,-462.02462899,0.00016438,2]
[351577922,1738637440587,-2592.34,0.00016438,2]
[351577923,1738637440597,-500.0,0.00016438,2]
[351577924,1738637440607,-500.0,0.00016438,2]
[351577925,1738637440616,-500.0,0.00016438,2]
[351577926,1738637440626,-500.0,0.00016438,2]
[351577927,1738637440636,-500.0,0.00016438,2]
[351577928,1738637440646,-500.0,0.00016438,2]
[351577929,1738637440655,-913.17,0.00016438,2]
[351577930,1738637440664,-1401.75,0.00016438,2]
[351577931,1738637440674,-500.0,0.00016438,2]
[351577932,1738637440683,-500.0,0.00016438,2]
[351577933,1738637440692,-500.0,0.00016438,2]
[351577934,1738637440702,-507.81391207,0.00016438,2]
[351577935,1738637440712,-505.70031755,0.00016438,2]
[351577936,1738637440721,-1214.32,0.00016438,2]
[351577937,1738637440730,-500.0,0.00016438,2]
[351577938,1738637440740,-507.16076065,0.00016438,2]
[351577939,1738637440750,-500.0,0.00016438,2]
[351577940,1738637440759,-500.0,0.00016438,2]
[351577941,1738637440768,-500.0,0.00016438,2]
[351577942,1738637440777,-2268.94,0.00016438,2]
[351577943,1738637440787,-500.0,0.00016438,2]
[351577944,1738637440797,-500.0,0.00016438,2]
[351577945,1738637440807,-500.0,0.00016438,2]
[351577946,1738637440816,-504.170842,0.00016438,2]
[351577947,1738637440826,-795.29,0.00016438,2]
[351577948,1738637440836,-500.0,0.00016438,2]
[351577949,1738637440846,-500.0,0.00016438,2]
[351577950,1738637440855,-500.0,0.00016438,2]
[351577951,1738637440865,-4852.58,0.00016438,2]
[351577952,1738637440874,-500.0,0.00016438,2]
[351577953,1738637440884,-500.0,0.00016438,2]
[351577954,1738637440893,-500.0,0.00016438,2]
[351577955,1738637440902,-500.0,0.00016438,2]
[351577956,1738637440911,-500.0,0.00016438,2]
[351577957,1738637440920,-500.0,0.00016438,2]
[351577958,1738637440929,-500.0,0.00016438,2]
[351577959,1738637440939,-500.0,0.00016438,2]
[351577960,1738637440948,-500.0,0.00016438,2]
[351577961,1738637440957,-503.46606248,0.00016438,2]
[351577962,1738637440967,-510.21327456,0.00016438,2]
[351577963,1738637440976,-503.19745152,0.00016438,2]
[351577964,1738637440986,-500.61293467,0.00016438,2]
[351577965,1738637440995,-500.0,0.00016438,2]
[351577966,1738637441004,-500.0,0.00016438,2]
[351577967,1738637441014,-505.02041017,0.00016438,2]
[351577968,1738637441024,-506.81243975,0.00016438,2]
[351577969,1738637441034,-500.0,0.00016438,2]
[351577970,1738637441044,-504.38163193,0.00016438,2]
[351577971,1738637441054,-22666.51,0.00016438,2]
[351577972,1738637441064,-9406.68,0.00016438,2]
[351577973,1738637441073,-513.10990804,0.00016438,2]
[351577974,1738637441082,-500.0,0.00016438,2]
[351577975,1738637441091,-2041.54,0.00016438,2]
[351577976,1738637441100,-500.0,0.00016438,2]
[351577977,1738637441109,-1242.44,0.00016438,2]
[351577978,1738637441119,-500.0,0.00016438,2]
[351577979,1738637441128,-655.54,0.00016438,2]
[351577980,1738637441137,-1491.06,0.00016438,2]
[351577981,1738637441146,-500.0,0.00016438,2]
[351577982,1738637441155,-501.9295016,0.00016438,2]
[351577983,1738637441164,-504.53,0.00016438,2]
[351577984,1738637441174,-500.0,0.00016438,2]
[351577985,1738637441183,-502.36729479,0.00016438,2]
[351577986,1738637441193,-1149.44,0.00016438,2]
[351577987,1738637441203,-2079.78,0.00016438,2]
[351577988,1738637441212,-500.0,0.00016438,2]
[351577989,1738637441221,-821.97,0.00016438,2]
[351577990,1738637441231,-500.0,0.00016438,2]
[351577991,1738637441245,-1380.69,0.00016438,2]
[351577992,1738637441255,-500.0,0.00016438,2]
[351577993,1738637441266,-1377.42,0.00016438,2]
[351577994,1738637441275,-502.10718508,0.00016438,2]
[351577995,1738637441284,-500.0,0.00016438,2]
[351577996,1738637441295,-1068.95,0.00016438,2]
[351577997,1738637441304,-507.08789795,0.00016438,2]
[351577998,1738637441314,-505.76557536,0.00016438,2]
[351577999,1738637441324,-501.65455518,0.00016438,2]
[351578000,1738637441335,-507.71889582,0.00016438,2]
[351578001,1738637441346,-500.0,0.00016438,2]
[351578002,1738637441355,-500.0,0.00016438,2]
[351578003,1738637441365,-503.56685203,0.00016438,2]
[351578004,1738637441375,-503.11633516,0.00016438,2]
[351578005,1738637441385,-207.67257652,0.00016438,2]
[351578006,1738637441394,-505.47658683,0.00016438,2]
[351578007,1738637441403,-1253.99,0.00016438,2]
[351578008,1738637441413,-502.00482231,0.00016438,2]
[351578009,1738637441422,-500.0,0.00016438,2]
[351578010,1738637441431,-500.0,0.00016438,2]
[351578011,1738637441441,-500.0,0.00016438,2]
[351578012,1738637441451,-506.82452803,0.00016438,2]
[351578013,1738637441460,-500.0,0.00016438,2]
[351578014,1738637441470,-505.66197187,0.00016438,2]
[351578015,1738637441479,-504.74539627,0.00016438,2]
[351578016,1738637441488,-936.71,0.00016438,2]
[351578017,1738637441498,-503.98299404,0.00016438,2]
[351578018,1738637441507,-500.0,0.00016438,2]
[351578019,1738637441517,-500.0,0.00016438,2]
[351578020,1738637441526,-502.29755516,0.00016438,2]
[351578021,1738637441536,-500.0,0.00016438,2]
[351578022,1738637441545,-500.0,0.00016438,2]
[351578023,1738637441555,-500.0,0.00016438,2]
[351578024,1738637441564,-503.9969487,0.00016438,2]
[351578025,1738637441574,-500.0,0.00016438,2]
[351578026,1738637441583,-500.0,0.00016438,2]
[351578027,1738637441592,-500.0,0.00016438,2]
[351578028,1738637441601,-172.6875313,0.00016438,2]
[351578029,1738637441610,-500.0,0.00016438,2]
[351578030,1738637441620,-503.63334636,0.00016438,2]
[351578031,1738637441629,-505.55804393,0.00016438,2]
[351578032,1738637441639,-1188.19,0.00016438,2]
[351578033,1738637441650,-1537.57,0.00016438,2]
[351578034,1738637441659,-500.0,0.00016438,2]
[351578035,1738637441669,-500.0,0.00016438,2]
[351578036,1738637441679,-508.01822997,0.00016438,2]
[351578037,1738637441688,-500.0,0.00016438,2]
[351578038,1738637441698,-500.0,0.00016438,2]
[351578039,1738637441709,-500.0,0.00016438,2]
[351578040,1738637441718,-500.0,0.00016438,2]
[351578041,1738637441727,-500.0,0.00016438,2]
[351578042,1738637441737,-3300.19,0.00016438,2]
[351578043,1738637441746,-500.0,0.00016438,2]
[351578044,1738637441756,-312.02886035,0.00016438,2]
[351578045,1738637441766,-500.0,0.00016438,2]
[351578046,1738637441775,-502.28064254,0.00016438,2]
[351578047,1738637441785,-502.87163712,0.00016438,2]
[351578048,1738637441795,-500.0,0.00016438,2]
[351578049,1738637441805,-345.56851319,0.00016438,2]
[351578050,1738637441815,-500.0,0.00016438,2]
[351578051,1738637441825,-299.00622135,0.00016438,2]
[351578052,1738637441835,-500.0,0.00016438,2]
[351578053,1738637441845,-153.0,0.0001644,2]
[351578054,1738637441855,-153.0,0.0001644,2]
[351578055,1738637441864,-153.0,0.0001644,2]
[351578056,1738637441874,-153.0,0.0001644,2]
[351578057,1738637441883,-153.0,0.0001644,2]
[351578058,1738637441893,-153.0,0.0001644,2]
[351578059,1738637441903,-153.0,0.0001644,2]
[351578060,1738637441913,-153.0,0.0001644,2]
[351578061,1738637441923,-153.0,0.0001644,2]
[351578062,1738637441933,-153.0,0.0001644,2]
[351578063,1738637441943,-153.0,0.0001644,2]
[351578064,1738637441953,-153.0,0.0001644,2]
[351578065,1738637441963,-153.0,0.0001644,2]
[351578066,1738637441973,-153.0,0.0001644,2]
[351578067,1738637441982,-153.0,0.0001644,2]
[351578068,1738637441991,-153.0,0.0001644,2]
[351578069,1738637442000,-153.0,0.0001644,2]
[351578070,1738637442010,-153.0,0.0001644,2]
[351578071,1738637442019,-153.0,0.0001644,2]
[351578072,1738637442029,-153.0,0.0001644,2]
[351578073,1738637442048,-153.0,0.0001644,2]
[351578074,1738637442060,-153.0,0.0001644,2]
[351578075,1738637442070,-153.0,0.0001644,2]
[351578076,1738637442080,-153.0,0.0001644,2]
[351578077,1738637442093,-153.0,0.0001644,2]
[351578078,1738637442105,-153.0,0.0001644,2]
[351578079,1738637442114,-153.0,0.0001644,2]
[351578080,1738637442126,-153.0,0.0001644,2]
[351578081,1738637442138,-153.0,0.0001644,2]
[351578082,1738637442148,-153.0,0.0001644,2]
[351578083,1738637442159,-153.0,0.0001644,2]
[351578084,1738637442167,-153.0,0.0001644,2]
[351578085,1738637442177,-153.0,0.0001644,2]
[351578086,1738637442186,-153.0,0.0001644,2]
[351578087,1738637442195,-153.0,0.0001644,2]
[351578088,1738637442205,-153.0,0.0001644,2]
[351578089,1738637442214,-153.0,0.0001644,2]
[351578090,1738637442224,-153.0,0.0001644,2]
[351578091,1738637442233,-153.0,0.0001644,2]
[351578092,1738637442241,-153.0,0.0001644,2]
[351578093,1738637442254,-153.0,0.0001644,2]
[351578094,1738637442263,-153.0,0.0001644,2]
[351578095,1738637442272,-153.0,0.0001644,2]
[351578096,1738637442281,-153.0,0.0001644,2]
[351578097,1738637442290,-153.0,0.0001644,2]
[351578098,1738637442299,-153.0,0.0001644,2]
[351578099,1738637442309,-153.0,0.0001644,2]
[351578100,1738637442318,-301.77685343,0.0001648,2]
[351578101,1738637442328,-153.0,0.00016486,2]
[351578102,1738637442337,-153.0,0.00016486,2]
[351578103,1738637442347,-153.0,0.00016486,2]
[351578104,1738637442357,-153.0,0.00016486,2]
[351578105,1738637442366,-153.0,0.00016486,2]
[351578106,1738637442375,-153.0,0.00016486,2]
[351578107,1738637442384,-153.0,0.00016486,2]
[351578108,1738637442393,-153.0,0.00016486,2]
[351578109,1738637442403,-153.0,0.00016486,2]
[351578110,1738637442412,-153.0,0.00016486,2]
[351578111,1738637442422,-153.0,0.00016486,2]
[351578112,1738637442432,-153.0,0.00016486,2]
[351578113,1738637442441,-153.0,0.00016486,2]
[351578114,1738637442451,-153.0,0.00016486,2]
[351578115,1738637442460,-153.0,0.00016486,2]
[351578116,1738637442470,-546.38685329,0.00016499,2]
[351578117,1738637442480,-500.0,0.00016499,2]
[351578118,1738637442489,-500.0,0.00016499,2]
[351578119,1738637442499,-500.0,0.00016499,2]
[351578120,1738637442509,-500.0,0.00016499,2]
[351578121,1738637442519,-500.0,0.00016499,2]
[351578122,1738637442529,-500.0,0.00016499,2]
[351578123,1738637442539,-500.0,0.00016499,2]
[351578124,1738637442548,-208.84015771,0.00016499,2]
[351578125,1738637442558,-500.0,0.00016499,2]
[351578126,1738637442568,-500.0,0.00016499,2]
[351578127,1738637442577,-500.0,0.00016499,2]
[351578128,1738637442587,-500.0,0.00016499,2]
[351578129,1738637442597,-426.40539307,0.00016499,2]
[351578130,1738637442606,-500.0,0.00016499,2]
[351578131,1738637442616,-500.0,0.00016499,2]
[351578132,1738637442625,-500.0,0.00016499,2]
[351578133,1738637442635,-500.0,0.00016499,2]
[351578134,1738637442644,-500.0,0.00016499,2]
[351578135,1738637442654,-500.0,0.00016499,2]
[351578136,1738637442664,-500.0,0.00016499,2]
[351578137,1738637442673,-500.0,0.00016499,2]
[351578138,1738637442683,-500.0,0.00016499,2]
[351578139,1738637442693,-500.0,0.00016499,2]
[351578140,1738637442703,-500.0,0.00016499,2]
[351578141,1738637442713,-500.0,0.00016499,2]
[351578142,1738637442722,-334.85304235,0.00016499,2]
[351578143,1738637442731,-500.0,0.00016499,2]
[351578144,1738637442741,-500.0,0.00016499,2]
[351578145,1738637442751,-489.55333779,0.00016499,2]
[351578146,1738637442760,-500.0,0.00016499,2]
[351578147,1738637442770,-500.0,0.00016499,2]
[351578148,1738637442780,-500.0,0.00016499,2]
[351578149,1738637442790,-500.0,0.00016499,2]
[351578150,1738637442801,-500.0,0.00016499,2]
[351578151,1738637442811,-500.0,0.00016499,2]
[351578152,1738637442821,-500.0,0.00016499,2]
[351578153,1738637442831,-500.0,0.00016499,2]
[351578154,1738637442840,-500.0,0.00016499,2]
[351578155,1738637442851,-500.0,0.00016499,2]
[351578156,1738637442861,-500.0,0.00016499,2]
[351578157,1738637442871,-500.0,0.00016499,2]
[351578158,1738637442880,-500.0,0.00016499,2]
[351578160,1738637442889,-500.0,0.00016499,2]
[351578161,1738637442899,-500.0,0.00016499,2]
[351578162,1738637442909,-500.0,0.00016499,2]
[351578164,1738637442918,-500.0,0.00016499,2]
[351578165,1738637442928,-500.0,0.00016499,2]
[351578166,1738637442937,-2999.99999901,0.000165,2]
[351578167,1738637442947,-500.79492656,0.00016573,2]
[351578168,1738637442957,-500.66313828,0.00016573,2]
[351578169,1738637442967,-500.0,0.00016573,2]
[351578170,1738637442977,-500.0,0.00016573,2]
[351578171,1738637442987,-500.0,0.00016573,2]
[351578172,1738637442997,-583.41026086,0.00016573,2]
[351578173,1738637443007,-311.37696299,0.00016573,2]
[351578174,1738637443017,-631.88861602,0.00016573,2]
[351578175,1738637443027,-500.0,0.00016573,2]
[351578176,1738637443037,-500.0,0.00016573,2]
[351578177,1738637443047,-500.0,0.00016573,2]
[351578178,1738637443058,-500.0,0.00016573,2]
[351578179,1738637443068,-224.64,0.00016573,2]
[351578180,1738637443078,-23733.44949332,0.00016575,5]
[351578181,1738637443087,-151.0,0.00016575,2]
[351578182,1738637443098,-152.684585,0.00016575,2]
[351578183,1738637443107,-151.0,0.00016575,2]
[351578184,1738637443227,-151.0,0.00016575,2]
[351578185,1738637443238,-152.42895,0.00016575,2]
[351578186,1738637443249,-151.0,0.00016575,2]
[351578187,1738637443261,-151.0,0.00016575,2]
[351578188,1738637443271,-151.0,0.00016575,2]
[351578189,1738637443280,-500.0,0.00016575,2]
[351578190,1738637443290,-151.0,0.00016575,2]
[351578191,1738637443301,-151.0,0.00016575,2]
[351578192,1738637443311,-152.87189063,0.00016575,2]
[351578193,1738637443321,-500.0,0.00016575,2]
[351578194,1738637443330,-504.255518,0.00016575,2]
[351578196,1738637443341,-517.75604238,0.00016575,2]
[351578198,1738637443350,-500.0,0.00016575,2]
[351578200,1738637443360,-473.37,0.00016575,2]
[351578201,1738637443369,-500.0,0.00016575,2]
[351578202,1738637443378,-500.0,0.00016575,2]
[351578203,1738637443388,-509.20360273,0.00016575,2]
[351578204,1738637443398,-505.6610908,0.00016575,2]
[351578205,1738637443408,-151.0,0.00016575,2]
[351578206,1738637443417,-500.0,0.00016575,2]
[351578207,1738637443427,-500.0,0.00016575,2]
[351578208,1738637443437,-151.0,0.00016575,2]
[351578209,1738637443447,-500.0,0.00016575,2]
[351578210,1738637443457,-500.0,0.00016575,2]
[351578211,1738637443466,-500.0,0.00016575,2]
[351578212,1738637443475,-500.0,0.00016575,2]
[351578213,1738637443485,-556.52,0.00016575,2]
[351578214,1738637443495,-500.0,0.00016575,2]
[351578215,1738637443504,-514.08373538,0.00016575,2]
[351578216,1738637443514,-519.08130178,0.00016575,2]
[351578217,1738637443523,-390.52389694,0.00016575,2]
[351578218,1738637443533,-500.0,0.00016575,2]
[351578219,1738637443542,-190.59330828,0.00016575,2]
[351578220,1738637443552,-1151.97,0.00016575,2]
[351578221,1738637443563,-500.0,0.00016575,2]
[351578222,1738637443573,-500.0,0.00016575,2]
[351578223,1738637443583,-917.27,0.00016575,2]
[351578224,1738637443593,-500.0,0.00016575,2]
[351578225,1738637443604,-500.0,0.00016575,2]
[351578226,1738637443614,-500.0,0.00016575,2]
[351578227,1738637443623,-500.0,0.00016575,2]
[351578228,1738637443633,-500.0,0.00016575,2]
[351578229,1738637443642,-506.62152571,0.00016575,2]
[351578230,1738637443651,-500.0,0.00016575,2]
[351578231,1738637443661,-510.09654131,0.00016575,2]
[351578232,1738637443670,-500.0,0.00016575,2]
[351578233,1738637443680,-515.0714989,0.00016575,2]
[351578235,1738637443690,-500.0,0.00016575,2]
[351578236,1738637443701,-500.0,0.00016575,2]
[351578237,1738637443711,-889.01,0.00016575,2]
[351578238,1738637443720,-500.0,0.00016575,2]
[351578239,1738637443730,-500.0,0.00016575,2]
[351578240,1738637443739,-500.0,0.00016575,2]
[351578241,1738637443748,-305.73491047,0.00016575,2]
[351578242,1738637443758,-500.0,0.00016575,2]
[351578243,1738637443767,-500.0,0.00016575,2]
[351578244,1738637443777,-528.88,0.00016575,2]
[351578245,1738637443787,-500.0,0.00016575,2]
[351578246,1738637443796,-862.75,0.00016575,2]
[351578247,1738637443806,-500.0,0.00016575,2]
[351578248,1738637443815,-500.0,0.00016575,2]
[351578249,1738637443824,-500.0,0.00016575,2]
[351578250,1738637443834,-501.9822771,0.00016575,2]
[351578251,1738637443843,-501.93782636,0.00016575,2]
[351578252,1738637443853,-542.19,0.00016575,2]
[351578253,1738637443862,-503.12687138,0.00016575,2]
[351578254,1738637443871,-510.71585665,0.00016575,2]
[351578255,1738637443880,-500.0,0.00016575,2]
[351578256,1738637443890,-500.0,0.00016575,2]
[351578257,1738637443899,-151.0,0.00016575,2]
[351578258,1738637443908,-495.3648516,0.00016575,2]
[351578259,1738637443918,-151.0,0.00016575,2]
[351578260,1738637443927,-500.0,0.00016575,2]
[351578261,1738637443937,-500.0,0.00016575,2]
[351578262,1738637443946,-8578.65,0.00016575,2]
[351578263,1738637443956,-151.0,0.00016575,2]
[351578264,1738637443965,-5792.5,0.00016575,2]
[351578265,1738637443976,-2219.07,0.00016575,2]
[351578266,1738637443986,-500.0,0.00016575,2]
[351578267,1738637443996,-1062.48,0.00016575,2]
[351578268,1738637444006,-311.31704597,0.00016575,2]
[351578269,1738637444015,-500.0,0.00016575,2]
[351578270,1738637444025,-1137.68,0.00016575,2]
[351578271,1738637444035,-505.2345982,0.00016575,2]
[351578272,1738637444044,-2662.0,0.00016575,2]
[351578273,1738637444054,-1921.58,0.00016575,2]
[351578274,1738637444064,-151.0,0.00016575,2]
[351578275,1738637444073,-500.0,0.00016575,2]
[351578276,1738637444083,-500.0,0.00016575,2]
[351578277,1738637444093,-1259.9,0.00016575,2]
[351578278,1738637444103,-500.0,0.00016575,2]
[351578279,1738637444114,-604.93475023,0.00016575,2]
[351578280,1738637444123,-511.63640628,0.00016575,2]
[351578281,1738637444133,-151.0,0.00016575,2]
[351578282,1738637444142,-263.64459837,0.00016575,2]
[351578283,1738637444153,-858.41,0.00016575,2]
[351578284,1738637444163,-2592.34,0.00016575,2]
[351578285,1738637444172,-500.0,0.00016575,2]
[351578286,1738637444182,-500.0,0.00016575,2]
[351578287,1738637444193,-500.0,0.00016575,2]
[351578288,1738637444203,-913.17,0.00016575,2]
[351578289,1738637444213,-1401.75,0.00016575,2]
[351578290,1738637444223,-165.453634,0.00016575,2]
[351578291,1738637444232,-500.0,0.00016575,2]
[351578292,1738637444241,-504.45598343,0.00016575,2]
[351578293,1738637444251,-500.0,0.00016575,2]
[351578294,1738637444263,-1214.32,0.00016575,2]
[351578295,1738637444272,-500.0,0.00016575,2]
[351578296,1738637444281,-510.13008639,0.00016575,2]
[351578297,1738637444290,-152.732016,0.00016575,2]
[351578298,1738637444300,-500.0,0.00016575,2]
[351578299,1738637444310,-2268.94,0.00016575,2]
[351578300,1738637444320,-259.80120855,0.00016575,2]
[351578301,1738637444329,-795.29,0.00016575,2]
[351578302,1738637444340,-304.73416212,0.00016575,2]
[351578303,1738637444350,-500.0,0.00016575,2]
[351578304,1738637444359,-409.84844239,0.00016575,2]
[351578305,1738637444369,-4852.58,0.00016575,2]
[351578306,1738637444378,-500.0,0.00016575,2]
[351578307,1738637444388,-500.0,0.00016575,2]
[351578308,1738637444397,-500.0,0.00016575,2]
[351578309,1738637444407,-500.0,0.00016575,2]
[351578310,1738637444416,-22666.51,0.00016575,2]
[351578311,1738637444426,-9406.68,0.00016575,2]
[351578312,1738637444436,-511.77394774,0.00016575,2]
[351578313,1738637444445,-2041.54,0.00016575,2]
[351578314,1738637444455,-500.0,0.00016575,2]
[351578315,1738637444464,-1242.44,0.00016575,2]
[351578316,1738637444473,-655.54,0.00016575,2]
[351578317,1738637444483,-1491.06,0.00016575,2]
[351578318,1738637444493,-500.0,0.00016575,2]
[351578319,1738637444503,-504.53,0.00016575,2]
[351578320,1738637444513,-500.0,0.00016575,2]
[351578321,1738637444522,-1149.44,0.00016575,2]
[351578322,1738637444532,-2079.78,0.00016575,2]
[351578323,1738637444542,-500.0,0.00016575,2]
[351578324,1738637444551,-821.97,0.00016575,2]
[351578325,1738637444561,-506.94515771,0.00016575,2]
[351578326,1738637444571,-1380.69,0.00016575,2]
[351578327,1738637444581,-504.89973157,0.00016575,2]
[351578328,1738637444590,-1377.42,0.00016575,2]
[351578329,1738637444599,-508.61174871,0.00016575,2]
[351578330,1738637444610,-1068.95,0.00016575,2]
[351578331,1738637444619,-151.0,0.00016575,2]
[351578332,1738637444629,-500.0,0.00016575,2]
[351578333,1738637444638,-500.0,0.00016575,2]
[351578334,1738637444648,-1253.99,0.00016575,2]
[351578335,1738637444658,-508.31337247,0.00016575,2]
[351578336,1738637444667,-500.0,0.00016575,2]
[351578337,1738637444676,-201.25689305,0.00016575,2]
[351578338,1738637444685,-500.0,0.00016575,2]
[351578339,1738637444694,-936.71,0.00016575,2]
[351578340,1738637444703,-500.0,0.00016575,2]
[351578341,1738637444713,-1188.19,0.00016575,2]
[351578342,1738637444722,-1537.57,0.00016575,2]
[351578343,1738637444731,-508.75733602,0.00016575,2]
[351578344,1738637444740,-500.0,0.00016575,2]
[351578345,1738637444749,-500.0,0.00016575,2]
[351578346,1738637444758,-500.0,0.00016575,2]
[351578347,1738637444767,-500.0,0.00016575,2]
[351578348,1738637444777,-505.33094631,0.00016575,2]
[351578349,1738637444786,-3300.19,0.00016575,2]
[351578350,1738637444795,-500.0,0.00016575,2]
[351578351,1738637444804,-500.0,0.00016575,2]
[351578352,1738637444813,-513.50320746,0.00016575,2]
[351578353,1738637444823,-505.78380565,0.00016575,2]
[351578354,1738637444832,-503.86948478,0.00016575,2]
[351578355,1738637444841,-152.25395272,0.0001658,2]
[351578356,1738637444851,-18346.18,0.000166,2]
[351578357,1738637444860,-15037.42,0.000166,2]
[351578358,1738637444869,-153.599248,0.000166,2]
[351578359,1738637444879,-151.0,0.000166,2]
[351578360,1738637444888,-151.0,0.000166,2]
[351578361,1738637444899,-296.0,0.0001661,2]
[351578362,1738637444909,-151.243,0.00016654,2]
[351578363,1738637444918,-2049.287,0.00016654,2]
[351578364,1738637444928,-541.988,0.00016654,2]
[351578365,1738637444938,-2208.86355949,0.00016654,2]
[351578366,1738637445069,-89.13644051,0.00016654,2]
[351578367,1738637445079,-396.0,0.00016654,2]
[351578368,1738637445091,-151.0,0.000167,2]
[351578369,1738637445102,-474.30783274,0.00016704,2]
[351578370,1738637445113,-500.1,0.00016711,2]
[351578371,1738637445124,-151.0,0.00016711,2]
[351578372,1738637445134,-152.298411,0.00016711,2]
[351578373,1738637445145,-446.095798,0.00016711,2]
[351578374,1738637445156,-446.095798,0.00016711,2]
[351578375,1738637445166,-151.0,0.00016711,2]
[351578376,1738637445175,-197.983757,0.00016711,2]
[351578377,1738637445185,-197.983757,0.00016711,2]
[351578378,1738637445194,-151.0,0.00016711,2]
[351578379,1738637445204,-151.0,0.00016711,2]
[351578380,1738637445213,-151.0,0.00016711,2]
[351578381,1738637445222,-151.0,0.00016711,2]
[351578382,1738637445231,-151.0,0.00016712,2]
[351578383,1738637445240,-151.0,0.00016712,2]
[351578384,1738637445250,-151.0,0.00016712,2]
[351578385,1738637445261,-151.0,0.00016712,2]
[351578386,1738637445271,-151.0,0.00016712,2]
[351578387,1738637445280,-152.48214,0.00016712,2]
[351578388,1738637445290,-151.0,0.00016712,2]
[351578389,1738637445299,-151.882235,0.00016712,2]
[351578390,1738637445309,-194.56125134,0.00016712,2]
[351578391,1738637445318,-151.0,0.00016712,2]
[351578392,1738637445327,-151.0,0.00016712,2]
[351578393,1738637445337,-500.0,0.00016712,2]
[351578394,1738637445346,-151.0,0.00016712,2]
[351578395,1738637445356,-151.0,0.00016712,2]
[351578396,1738637445366,-500.0,0.00016712,2]
[351578397,1738637445375,-151.0,0.00016712,2]
[351578398,1738637445385,-151.0,0.00016712,2]
[351578399,1738637445394,-500.0,0.00016712,2]
[351578400,1738637445403,-500.0,0.00016712,2]
[351578401,1738637445413,-151.0,0.00016712,2]
[351578402,1738637445422,-21.81407648,0.00016712,2]
[351578403,1738637445434,-482.30393372,0.00016712,2]
[351578404,1738637445443,-500.0,0.00016712,2]
[351578405,1738637445452,-151.0,0.00016712,2]
[351578406,1738637445461,-151.0,0.00016712,2]
[351578407,1738637445470,-500.0,0.00016712,2]
[351578408,1738637445479,-151.0,0.00016712,2]
[351578409,1738637445488,-151.0,0.00016712,2]
[351578410,1738637445497,-500.0,0.00016712,2]
[351578411,1738637445506,-500.0,0.00016712,2]